bitfinex/quotes_SOLUSD_20241028
["timestamp","ask_amount","ask_price","bid_price","bid_amount"]
[1730133754461,27.43077663,174.49,174.41,5.70307663]
[1730133754666,5.70307663,174.48,174.41,5.70307663]
[1730133755366,21.7277,174.49,174.42,5.70307663]
[1730133755558,27.43077663,174.49,174.42,5.70307663]
[1730133755952,5.70307663,174.48,174.41,5.70307663]
[1730133756853,21.7277,174.49,174.41,5.70307663]
[1730133757058,5.70307663,174.48,174.39,6.0604]
[1730133757359,5.70307663,174.48,174.41,5.70307663]
[1730133757869,21.7277,174.49,174.41,5.70307663]
[1730133758077,5.70307663,174.48,174.42,5.70307663]
[1730133758239,21.7277,174.49,174.42,5.70307663]
[1730133758440,5.70307663,174.48,174.41,6.55882972]
[1730133759274,5.70307663,174.47,174.41,6.55882972]
[1730133760552,5.7311,174.49,174.41,6.55882972]
[1730133760553,5.70307663,174.48,174.41,6.55882972]
[1730133761164,5.70307663,174.48,174.42,5.70307663]
[1730133761871,5.70307663,174.48,174.41,0.85575309]
[1730133762047,5.70307663,174.48,174.42,5.70307663]
[1730133763170,11.43407663,174.49,174.42,5.70307663]
[1730133764075,11.43407663,174.49,174.43,5.70307663]
[1730133765367,5.731,174.49,174.43,5.70307663]
[1730133765862,11.43407663,174.49,174.43,5.70307663]
[1730133768284,5.731,174.49,174.44,5.70307663]
[1730133771880,5.731,174.49,174.43,5.70307663]
[1730133772553,5.731,174.49,174.44,5.70307663]
[1730133772978,5.731,174.49,174.43,5.70307663]
[1730133773858,5.731,174.49,174.44,5.70307663]
[1730133777468,5.731,174.49,174.45,5.70307663]
[1730133777669,5.70307663,174.51,174.45,5.70307663]
[1730133777966,5.7307,174.5,174.45,5.70307663]
[1730133778167,11.43347663,174.51,174.45,5.70307663]
[1730133778573,5.7304,174.51,174.45,5.70307663]
[1730133780158,11.43347663,174.51,174.45,5.70307663]
[1730133782288,5.70307663,174.52,174.45,5.70307663]
[1730133783085,5.7303,174.51,174.45,5.70307663]
[1730133783384,5.7303,174.51,174.46,5.70307663]
[1730133784089,5.73,174.52,174.46,5.70307663]
[1730133786494,5.73,174.52,174.44,0.86006183]
[1730133786680,5.73,174.52,174.46,5.70307663]
[1730133788590,11.43307663,174.52,174.46,5.70307663]
[1730133789333,5.73,174.52,174.46,5.70307663]
[1730133789676,5.73,174.52,174.47,5.70307663]
[1730133789988,5.73,174.52,174.46,5.70307663]
[1730133791583,5.73,174.52,174.47,5.70307663]
[1730133791885,21.823,174.53,174.49,5.70307663]
[1730133792100,21.823,174.53,174.48,5.70307663]
[1730133797867,5.7297,174.53,174.48,5.70307663]
[1730133798070,25.7286,174.56,174.5,5.70307663]
[1730133798281,31.43167663,174.56,174.5,5.70307663]
[1730133798488,25.7286,174.56,174.51,5.70307663]
[1730133799172,5.7286,174.56,174.51,5.70307663]
[1730133799368,21.7104,174.57,174.51,5.70307663]
[1730133799369,21.1088,174.57,174.51,5.70307663]
[1730133799590,21.1088,174.57,174.52,5.70307663]
[1730133799788,21.1088,174.57,174.51,5.70307663]
[1730133801276,21.1088,174.57,174.52,5.70307663]
[1730133801589,21.1088,174.57,174.48,0.85991233]
[1730133801782,21.1088,174.57,174.51,5.70307663]
[1730133802036,21.1088,174.57,174.52,5.70307663]
[1730133804150,5.7284,174.57,174.51,22.4767]
[1730133804282,5.7284,174.57,174.54,5.70307663]
[1730133804482,20.046,174.6,174.54,5.70307663]
[1730133804992,25.74907663,174.6,174.54,5.70307663]
[1730133806794,14.3187,174.6,174.51,22.4767]
[1730133807376,5.727,174.61,174.51,22.4767]
[1730133807580,5.727,174.61,174.51,22.5767]
[1730133808410,5.727,174.61,174.52,0.1]
[1730133808592,5.7263,174.63,174.51,22.5767]
[1730133808900,20.0,174.62,174.52,0.1]
[1730133809601,20.0,174.62,174.51,22.4767]
[1730133811403,5.727,174.61,174.51,22.4767]
[1730133814484,5.7277,174.59,174.51,22.4767]
[1730133815756,5.727,174.61,174.52,20.0548]
[1730133815906,5.727,174.61,174.52,20.91442017]
[1730133819310,20.0,174.59,174.52,15.18462017]
[1730133821381,5.728,174.58,174.52,15.18462017]
[1730133821599,75.728,174.58,174.52,15.18462017]
[1730133823201,20.0,174.57,174.52,0.85962017]
[1730133824514,5.7286,174.56,174.52,0.85962017]
[1730133826044,25.7284,174.57,174.52,6.58952017]
[1730133826310,25.7284,174.57,174.52,0.85962017]
[1730133826487,25.7284,174.57,174.52,6.58942017]
[1730133826688,25.7284,174.57,174.52,5.7298]
[1730133826915,15.4541,174.59,174.52,5.7298]
[1730133827128,20.0,174.58,174.52,20.0548]
[1730133827709,25.728,174.58,174.52,20.0548]
[1730133829389,5.727,174.61,174.52,20.0548]
[1730133830402,5.7267,174.62,174.52,20.0548]
[1730133830586,20.0,174.61,174.52,20.0548]
[1730133831506,25.7267,174.62,174.52,20.0548]
[1730133831712,25.7267,174.62,174.52,35.568]
[1730133832216,25.7267,174.62,174.52,35.468]
[1730133834294,25.7267,174.62,174.54,5.729]
[1730133834517,25.7267,174.62,174.54,20.1523]
[1730133835010,25.7267,174.62,174.54,20.0523]
[1730133836997,11.40419576,174.62,174.55,5.67749576]
[1730133837666,11.40419576,174.62,174.55,11.40649576]
[1730133838120,5.67749576,174.61,174.54,14.3233]
[1730133838424,5.67749576,174.61,174.54,20.0526]
[1730133838604,5.67749576,174.6,174.54,20.0526]
[1730133838804,5.67749576,174.61,174.54,25.73009576]
[1730133839320,5.7273,174.6,174.54,25.73009576]
[1730133840093,5.7273,174.6,174.55,5.67749576]
[1730133840308,25.727,174.61,174.55,5.67749576]
[1730133841429,25.727,174.61,174.54,20.0526]
[1730133841593,25.727,174.61,174.55,5.67749576]
[1730133843524,25.727,174.61,174.55,11.40649576]
[1730133843723,25.727,174.61,174.56,5.67749576]
[1730133843899,25.727,174.61,174.57,5.67749576]
[1730133846223,25.727,174.61,174.54,14.3233]
[1730133846425,25.727,174.61,174.57,5.67749576]
[1730133848926,25.727,174.61,174.56,5.67749576]
[1730133851929,14.3164,174.63,174.56,25.72779576]
[1730133851930,5.7263,174.63,174.56,25.72779576]
[1730133852130,85.2458,174.68,174.62,5.67749576]
[1730133852427,85.2458,174.68,174.58,16.1522]
[1730133852428,5.67749576,174.7,174.64,5.67749576]
[1730133852629,20.7336,174.72,174.64,5.67749576]
[1730133852829,5.67749576,174.7,174.64,5.67749576]
[1730133853131,5.67749576,174.7,174.63,5.67749576]
[1730133853330,5.67749576,174.7,174.64,5.67749576]
[1730133853535,5.67749576,174.7,174.62,20.0435]
[1730133853733,5.67749576,174.7,174.63,5.67749576]
[1730133854035,5.67749576,174.7,174.64,5.67749576]
[1730133854220,5.67749576,174.7,174.62,20.0435]
[1730133854420,5.67749576,174.69,174.63,5.67749576]
[1730133856887,11.40199576,174.69,174.63,5.67749576]
[1730133857041,20.0,174.68,174.63,5.67749576]
[1730133857210,20.0,174.68,174.62,20.85349038]
[1730133857417,20.0,174.68,174.63,5.67749576]
[1730133857637,20.0,174.68,174.62,15.17599462]
[1730133857811,20.0,174.68,174.59,14.3191]
[1730133858018,5.67749576,174.66,174.59,14.3191]
[1730133858335,75.7245,174.69,174.59,5.67749576]
[1730133858336,25.67749576,174.65,174.59,5.67749576]
[1730133858536,90.0,174.65,174.58,7.11130763]
[1730133858851,5.726,174.64,174.59,5.67749576]
[1730133859940,90.0,174.63,174.56,20.9101]
[1730133860114,90.0,174.63,174.57,5.67749576]
[1730133860313,90.0,174.63,174.56,5.67749576]
[1730133860314,95.67749576,174.63,174.56,5.67749576]
[1730133861231,20.0,174.62,174.56,5.67749576]
[1730133861432,20.0,174.63,174.55,2.29348851]
[1730133861740,25.67749576,174.63,174.56,5.67749576]
[1730133861940,20.0,174.61,174.56,5.67749576]
[1730133862868,25.7267,174.62,174.56,5.67749576]
[1730133863149,25.7267,174.62,174.57,5.67749576]
[1730133869464,25.7267,174.62,174.56,5.67749576]
[1730133869654,25.7267,174.62,174.57,5.67749576]
[1730133873447,25.6928731,174.62,174.57,5.67749576]
[1730133873645,5.7267,174.62,174.57,5.67749576]
[1730133874477,5.7267,174.62,174.55,0.85954408]
[1730133874670,5.7267,174.62,174.56,5.67749576]
[1730133875460,20.0,174.61,174.56,5.67749576]
[1730133875858,20.0,174.61,174.56,7.11158957]
[1730133876565,20.0,174.61,174.57,5.67749576]
[1730133876871,5.7273,174.6,174.57,5.67749576]
[1730133878256,5.7267,174.62,174.57,5.67749576]
[1730133878464,20.0,174.61,174.57,5.67749576]
[1730133879289,20.0,174.63,174.57,5.67749576]
[1730133879483,25.7263,174.63,174.57,5.67749576]
[1730133880065,25.7263,174.63,174.58,5.67749576]
[1730133880453,25.7263,174.63,174.57,5.67749576]
[1730133883680,25.7263,174.63,174.58,5.67749576]
[1730133887560,5.7263,174.63,174.58,5.67749576]
[1730133888886,5.7263,174.63,174.57,7.11154774]
[1730133889060,5.7263,174.63,174.57,5.67749576]
[1730133889261,5.7263,174.63,174.58,5.67749576]
[1730133889472,70.0,174.64,174.59,20.0469]
[1730133889684,75.726,174.64,174.59,20.0469]
[1730133890587,75.726,174.64,174.59,25.72439576]
[1730133890784,75.726,174.64,174.6,5.67749576]
[1730133890990,70.0,174.64,174.59,19.99669576]
[1730133891167,75.726,174.64,174.59,19.99669576]
[1730133891415,75.726,174.64,174.6,5.67749576]
[1730133891581,70.0,174.64,174.6,5.67749576]
[1730133891782,5.7254,174.66,174.61,5.67749576]
[1730133892868,5.725,174.67,174.61,11.40449576]
[1730133893571,100.5682,174.7,174.61,11.40449576]
[1730133893572,20.0,174.68,174.63,5.67749576]
[1730133894669,25.7248,174.68,174.63,5.67749576]
[1730133895391,5.7248,174.68,174.63,5.67749576]
[1730133895603,5.7248,174.68,174.64,5.67749576]
[1730133896164,5.7248,174.68,174.63,5.67749576]
[1730133896365,21.93479576,174.7,174.63,5.67749576]
[1730133896595,20.0,174.68,174.63,5.67749576]
[1730133896780,20.0,174.68,174.64,5.67749576]
[1730133897690,5.67749576,174.71,174.64,5.67749576]
[1730133897898,5.7239,174.71,174.65,5.67749576]
[1730133898376,0.5795313,174.73,174.65,5.67749576]
[1730133898693,11.40089576,174.72,174.65,5.67749576]
[1730133899087,5.67749576,174.71,174.64,5.67749576]
[1730133899476,11.40089576,174.72,174.65,5.67749576]
[1730133899879,11.40089576,174.72,174.66,5.67749576]
[1730133900879,11.40089576,174.72,174.63,20.0422]
[1730133900880,5.67749576,174.71,174.63,20.0422]
[1730133901083,5.67749576,174.71,174.65,5.67749576]
[1730133901904,5.724,174.7,174.64,7.11107091]
[1730133902107,5.724,174.7,174.64,5.67749576]
[1730133902409,5.724,174.7,174.66,5.67749576]
[1730133903105,75.7237,174.72,174.67,0.85893884]
[1730133903295,81.40119576,174.72,174.67,0.85893884]
[1730133903908,11.40119576,174.72,174.67,0.85893884]
[1730133904109,5.7237,174.72,174.67,6.5364346]
[1730133904485,11.40119576,174.72,174.67,0.85893884]
[1730133905007,5.7237,174.72,174.67,6.5364346]
[1730133905589,5.7237,174.72,174.68,5.67749576]
[1730133906184,0.5795313,174.73,174.7,5.67749576]
[1730133906389,0.5795313,174.73,174.68,15.8752]
[1730133906603,6.3027313,174.73,174.68,21.55269576]
[1730133907188,6.3027313,174.73,174.69,5.67749576]
[1730133907613,0.5795313,174.73,174.72,5.67749576]
[1730133909921,0.5795313,174.73,174.69,5.7242]
[1730133910089,0.5795313,174.73,174.68,36.7705108]
[1730133910288,0.5795313,174.73,174.7,5.67749576]
[1730133910707,0.5795313,174.73,174.71,5.67749576]
[1730133911605,0.5795313,174.73,174.72,0.85871686]
[1730133911785,6.3026313,174.73,174.67,5.7247]
[1730133911988,0.5795313,174.73,174.71,5.67749576]
[1730133912435,0.5795313,174.73,174.72,0.85862877]
[1730133914294,0.5795313,174.73,174.72,6.53612453]
[1730133916622,5.7201,174.82,174.74,0.1]
[1730133916811,5.7201,174.82,174.8,5.67749576]
[1730133916990,6.4547,174.94,174.8,5.67749576]
[1730133916991,5.96447618,174.87,174.81,5.67749576]
[1730133917191,5.7178,174.89,174.83,5.67749576]
[1730133917415,70.5795313,174.9,174.83,5.67749576]
[1730133917416,11.97452706,174.9,174.83,5.67749576]
[1730133917805,6.2970313,174.9,174.85,5.67749576]
[1730133918214,6.2970313,174.9,174.82,0.85819217]
[1730133918421,6.2970313,174.9,174.84,5.67749576]
[1730133918622,6.2970313,174.9,174.84,10.47835292]
[1730133919430,10.47835292,174.89,174.82,0.85819217]
[1730133919618,10.47835292,174.89,174.82,11.33654509]
[1730133919802,10.47835292,174.88,174.82,0.85819217]
[1730133920000,10.47835292,174.87,174.82,0.85819217]
[1730133921611,16.19685292,174.88,174.82,0.85819217]
[1730133922606,16.19685292,174.88,174.82,11.33654509]
[1730133923002,30.47835292,174.88,174.82,11.33654509]
[1730133923832,20.0,174.88,174.82,11.33654509]
[1730133924524,5.7185,174.87,174.82,12.17812151]
[1730133926322,20.0,174.88,174.83,11.31992934]
[1730133926704,31.31992934,174.88,174.82,12.17812151]
[1730133927538,20.0,174.88,174.84,11.31992934]
[1730133928618,6.2970313,174.9,174.86,11.31992934]
[1730133928817,6.2970313,174.9,174.85,11.31992934]
[1730133929333,6.2970313,174.9,174.84,11.31992934]
[1730133929638,17.61696064,174.9,174.84,11.31992934]
[1730133929833,0.5795313,174.9,174.85,11.31992934]
[1730133930237,6.2970313,174.9,174.85,11.31992934]
[1730133931222,6.2970313,174.9,174.86,11.31992934]
[1730133932524,6.2970313,174.9,174.87,11.31992934]
[1730133933144,0.5795313,174.9,174.87,11.31992934]
[1730133933850,6.2971313,174.9,174.86,11.31992934]
[1730133934063,6.2971313,174.9,174.87,11.31992934]
[1730133934428,6.2971313,174.9,174.88,11.31992934]
[1730133935140,6.2971313,174.9,174.86,11.31992934]
[1730133935346,6.2971313,174.9,174.87,11.31992934]
[1730133935651,0.5795313,174.9,174.89,11.31992934]
[1730133937830,0.5795313,174.9,174.89,17.03772934]
[1730133938655,0.5795313,174.9,174.89,17.13772934]
[1730133939861,0.5795313,174.9,174.89,5.8178]
[1730133940555,0.5795313,174.9,174.89,17.13772934]
[1730133945647,0.5795313,174.9,174.89,18.2807475]
[1730133950262,0.5795313,174.9,174.89,6.96081816]
[1730133950464,0.5795313,174.9,174.89,18.2807475]
[1730133952971,5.9612867,175.03,174.89,18.2807475]
[1730133952972,5.7139,175.02,174.94,0.1]
[1730133953154,5.7139,175.02,174.97,11.31992934]
[1730133953669,5.7133,175.03,174.97,11.31992934]
[1730133954368,5.7133,175.03,174.96,6.1395]
[1730133954556,5.7133,175.03,174.99,11.31992934]
[1730133954767,5.7123,175.06,174.99,11.31992934]
[1730133955061,11.31992934,175.06,175.0,12.17723367]
[1730133955249,17.61156064,175.07,175.01,11.31992934]
[1730133955568,11.31992934,175.06,175.0,12.17723367]
[1730133955874,11.31992934,175.06,175.0,17.89123367]
[1730133956168,0.5795313,175.07,175.0,17.89123367]
[1730133956355,5.7123,175.06,175.01,11.31992934]
[1730133957154,5.7123,175.06,175.02,11.31992934]
[1730133957971,0.5795313,175.07,175.02,11.31992934]
[1730133958926,0.5795313,175.07,175.03,11.31992934]
[1730133959075,0.5795313,175.07,175.02,11.31992934]
[1730133959450,0.5795313,175.07,175.03,11.31992934]
[1730133960681,0.5795313,175.07,175.03,6.4121]
[1730133960864,0.5795313,175.07,175.06,11.31992934]
[1730133961060,0.5795313,175.07,175.05,11.31992934]
[1730133961576,0.5795313,175.07,175.06,11.31992934]
[1730133964464,0.5795313,175.07,175.04,0.1]
[1730133964672,0.5795313,175.07,175.06,11.31992934]
[1730133966186,0.5795313,175.07,175.05,0.9570834]
[1730133966373,0.5795313,175.07,175.06,11.31992934]
[1730133966591,0.5795313,175.07,175.06,17.03222934]
[1730133967272,0.5795313,175.07,175.06,5.7123]
[1730133967570,0.5795313,175.07,175.06,17.03222934]
[1730133969197,0.5795313,175.07,175.06,32.79552934]
[1730133969372,0.5795313,175.07,175.06,32.89552934]
[1730133969573,0.5795313,175.07,175.06,21.5756]
[1730133969893,0.5795313,175.07,175.06,40.96994595]
[1730133970269,14.2696,175.2,175.09,0.1]
[1730133970569,14.2696,175.2,175.15,11.31992934]
[1730133970679,25.58952934,175.2,175.14,11.31992934]
[1730133971088,31.29722934,175.2,175.14,11.31992934]
[1730133971393,19.9773,175.2,175.15,11.31992934]
[1730133972593,19.9773,175.2,175.11,0.1]
[1730133972771,31.29722934,175.2,175.15,11.31992934]
[1730133973394,14.2696,175.2,175.15,11.31992934]
[1730133974267,25.58952934,175.2,175.15,11.31992934]
[1730133974467,5.7071,175.22,175.16,11.31992934]
[1730133974809,11.31992934,175.21,175.12,5.7101]
[1730133974968,31.29472934,175.22,175.16,11.31992934]
[1730133975374,31.29472934,175.22,175.17,11.31992934]
[1730133975594,19.9748,175.22,175.18,11.31992934]
[1730133977473,19.9748,175.22,175.13,6.5666982]
[1730133977991,19.9748,175.22,175.18,11.31992934]
[1730133979176,11.31992934,175.19,175.06,6.2629]
[1730133979382,11.31992934,175.13,175.08,11.31992934]
[1730133979576,11.31992934,175.14,175.08,11.31992934]
[1730133980279,11.31992934,175.15,175.09,11.31992934]
[1730133980483,11.31992934,175.16,175.1,11.31992934]
[1730133981370,5.7093,175.15,175.1,11.31992934]
[1730133981571,17.02922934,175.15,175.08,11.31992934]
[1730133981772,17.02922934,175.15,175.05,5.7124]
[1730133981773,5.7093,175.15,175.1,11.31992934]
[1730133981978,5.7093,175.15,175.09,11.31992934]
[1730133982475,5.7093,175.15,175.1,11.31992934]
[1730133983003,5.7093,175.15,175.09,11.31992934]
[1730133983319,17.02922934,175.15,175.09,11.31992934]
[1730133983874,5.7093,175.15,175.1,11.28539239]
[1730133984193,15.1389,175.17,175.14,11.28539239]
[1730133984382,20.8478,175.17,175.08,7.48607749]
[1730133984695,20.8478,175.17,175.14,11.28539239]
[1730133985689,20.8478,175.17,175.15,11.28539239]
[1730133986396,5.7089,175.17,175.15,11.28539239]
[1730133986705,5.7089,175.17,175.16,11.28539239]
[1730133987894,5.7077,175.2,175.15,11.28539239]
[1730133988274,5.7077,175.2,175.16,11.28539239]
[1730133988602,5.7077,175.2,175.18,11.28539239]
[1730133989379,5.7064,175.24,175.18,11.28539239]
[1730133989660,16.99179239,175.24,175.18,11.28539239]
[1730133991281,5.7064,175.24,175.18,11.28539239]
[1730133991479,16.99179239,175.24,175.18,11.28539239]
[1730133992593,0.5795313,175.25,175.22,11.28539239]
[1730133992900,0.5795313,175.25,175.2,11.28539239]
[1730133993400,0.5795313,175.25,175.21,11.28539239]
[1730133993702,0.5795313,175.25,175.22,11.28539239]
[1730133994100,0.5795313,175.25,175.21,11.28539239]
[1730133994300,0.5795313,175.25,175.22,11.28539239]
[1730133995501,0.5795313,175.25,175.23,11.28539239]
[1730133995701,0.5795313,175.25,175.21,5.7071]
[1730133995904,0.5795313,175.25,175.23,11.28539239]
[1730133997284,70.0,175.23,175.12,5.7103]
[1730133997498,70.0,175.23,175.16,11.28539239]
[1730133997710,11.27655777,175.22,175.16,11.27655777]
[1730133998285,5.7074,175.21,175.16,11.27655777]
[1730133998684,16.98395777,175.21,175.15,12.1331557]
[1730133999609,11.27655777,175.2,175.15,0.85659793]
[1730133999794,11.27655777,175.21,175.15,12.1331557]
[1730134000264,31.25135777,175.22,175.16,11.27655777]
[1730134000612,31.25135777,175.22,175.15,0.85659793]
[1730134001694,31.25135777,175.22,175.15,2.28575004]
[1730134001897,31.25135777,175.22,175.15,0.85659793]
[1730134002395,31.25135777,175.22,175.15,2.28575004]
[1730134002714,11.27655777,175.21,175.15,0.85659793]
[1730134003212,25.54425777,175.22,175.15,2.28575004]
[1730134003479,25.54425777,175.22,175.15,0.85659793]
[1730134003593,25.54425777,175.22,175.15,2.28575004]
[1730134003910,19.9748,175.22,175.15,0.85659793]
[1730134004112,31.25135777,175.22,175.15,0.85659793]
[1730134005293,31.25135777,175.22,175.16,1.429145]
[1730134005487,31.25135777,175.22,175.16,12.70570277]
[1730134005805,31.25135777,175.22,175.16,11.27655777]
[1730134006391,19.9748,175.22,175.17,11.27655777]
[1730134007991,31.25135777,175.22,175.16,12.70559898]
[1730134008188,19.9748,175.22,175.17,1.42904121]
[1730134008387,19.9748,175.22,175.16,11.27655777]
[1730134008388,19.9748,175.22,175.16,12.70559898]
[1730134008712,31.25135777,175.22,175.16,12.70559898]
[1730134008908,31.25135777,175.22,175.17,1.42900862]
[1730134009213,31.25135777,175.22,175.16,11.27655777]
[1730134009616,11.27655777,175.21,175.15,12.70556625]
[1730134009832,11.27655777,175.21,175.16,1.42900848]
[1730134010187,11.27655777,175.21,175.17,1.42900848]
[1730134010383,11.27655777,175.21,175.16,1.42900848]
[1730134010600,11.27655777,175.18,175.13,1.42900848]
[1730134010802,27.31095777,175.18,175.14,1.42900848]
[1730134010994,27.31095777,175.18,175.12,11.27655777]
[1730134011207,27.31095777,175.18,175.13,1.42900848]
[1730134011432,27.31095777,175.18,175.14,1.42900848]
[1730134011433,11.27655777,175.17,175.14,1.42900848]
[1730134011603,5.709,175.16,175.13,1.42900848]
[1730134011799,5.709,175.16,175.12,1.42920929]
[1730134012034,5.709,175.16,175.13,1.42920929]
[1730134012214,5.709,175.16,175.14,1.42920929]
[1730134012410,5.709,175.16,175.12,1.42920929]
[1730134012625,5.709,175.16,175.13,1.42920929]
[1730134012836,11.27655777,175.16,175.1,16.98735777]
[1730134013015,11.27655777,175.16,175.11,1.42921514]
[1730134013206,11.27655777,175.16,175.12,1.42921514]
[1730134013527,11.27655777,175.16,175.13,1.42921514]
[1730134013827,20.0,175.13,175.04,6.4834]
[1730134014064,11.27655777,175.11,175.01,21.2799]
[1730134014229,11.27655777,175.09,175.03,11.27655777]
[1730134014412,11.27655777,175.09,175.04,1.42954131]
[1730134014607,11.27655777,175.09,175.05,1.42954131]
[1730134014919,5.7116,175.08,175.06,1.42954131]
[1730134015123,16.98815777,175.08,175.07,1.42954131]
[1730134015323,16.98815777,175.08,175.03,0.83458993]
[1730134015324,16.98815777,175.08,175.04,1.42954131]
[1730134015512,5.7116,175.08,175.04,1.42954131]
[1730134015931,16.98815777,175.08,175.05,1.42970272]
[1730134016168,11.27655777,175.07,175.06,1.42970272]
[1730134016430,11.27655777,175.07,175.03,0.83458993]
[1730134016431,11.27655777,175.07,175.04,1.42970272]
[1730134017131,5.7123,175.06,175.04,1.42970272]
[1730134017310,5.7123,175.06,175.03,0.83458993]
[1730134017311,16.98885777,175.06,175.05,1.42978964]
[1730134017513,5.7123,175.06,175.05,1.42978964]
[1730134017831,16.98885777,175.06,175.05,2.85958035]
[1730134018271,106.98885777,175.06,175.05,2.85958035]
[1730134018410,95.7123,175.06,175.05,2.85958035]
[1730134018610,95.7123,175.06,174.98,2.26481667]
[1730134018611,113.37049424,175.06,174.98,2.26481667]
[1730134018915,17.65819424,175.02,174.99,1.42998035]
[1730134019130,5.7139,175.01,175.0,1.42998035]
[1730134019431,5.7139,175.01,174.99,1.42998035]
[1730134019622,5.7139,175.01,175.0,1.42998035]
[1730134019823,5.7139,175.01,174.99,1.42998035]
[1730134020209,5.7139,175.01,174.95,17.65819424]
[1730134020536,5.7139,175.01,174.96,17.65819424]
[1730134020707,5.7139,175.01,174.97,1.43022961]
[1730134020708,23.37209424,175.01,174.97,1.43022961]
[1730134020903,37.65819424,175.0,174.98,1.43022961]
[1730134021114,5.7146,174.99,174.95,1.43022961]
[1730134021322,5.7146,174.99,174.94,17.65819424]
[1730134021520,5.7146,174.99,174.96,1.43033765]
[1730134021735,5.7146,174.99,174.97,1.43033765]
[1730134021903,5.7146,174.99,174.95,1.43033765]
[1730134022104,5.7146,174.99,174.94,17.65819424]
[1730134022105,5.7146,174.99,174.96,1.43033765]
[1730134022320,5.7146,174.99,174.95,1.43033765]
[1730134022835,23.37279424,174.99,174.94,1.43033765]
[1730134023029,5.7146,174.99,174.94,19.08853189]
[1730134023231,5.7146,174.99,174.95,1.43033765]
[1730134023435,17.65819424,174.98,174.95,1.43033765]
[1730134023735,5.7146,174.99,174.94,17.65819424]
[1730134023909,5.7146,174.99,174.95,1.43033765]
[1730134024335,5.7146,174.99,174.94,17.65819424]
[1730134025539,20.0,175.0,174.94,17.65819424]
[1730134025734,20.0,174.98,174.94,17.65819424]
[1730134026035,70.0,174.97,174.91,18.49336161]
[1730134026241,20.0,174.96,174.92,1.43050598]
[1730134026450,20.0,174.96,174.91,17.65819424]
[1730134026778,20.0,174.96,174.92,17.65819424]
[1730134027446,5.7159,174.95,174.92,17.65819424]
[1730134028939,5.7159,174.95,174.91,17.65819424]
[1730134029037,5.7159,174.95,174.92,17.65819424]
[1730134030648,5.6896851,174.95,174.92,17.65819424]
[1730134031031,5.6896851,174.95,174.93,17.65819424]
[1730134031426,5.6896851,174.95,174.85,6.2154]
[1730134031643,5.6896851,174.95,174.91,17.65819424]
[1730134031852,5.6896851,174.95,174.92,17.65819424]
[1730134032329,5.6896851,174.95,174.93,17.65819424]
[1730134032850,5.6896851,174.95,174.92,17.65819424]
[1730134036948,5.6896851,174.95,174.91,17.65819424]
[1730134038347,5.6896851,174.95,174.88,5.7182]
[1730134038546,5.6896851,174.95,174.91,11.30871857]
[1730134039589,5.6896851,174.95,174.92,11.30871857]
[1730134039755,16.99840367,174.95,174.88,7.14855447]
[1730134039941,11.30871857,174.94,174.88,1.43065447]
[1730134040254,11.30871857,174.93,174.87,11.30871857]
[1730134040453,11.30871857,174.93,174.87,12.73937304]
[1730134040831,11.30871857,174.94,174.88,11.30871857]
[1730134041034,31.28810367,174.95,174.88,11.30871857]
[1730134041734,11.30871857,174.94,174.88,11.30871857]
[1730134042757,17.02491857,174.94,174.88,11.30871857]
[1730134043465,5.7162,174.94,174.89,11.30871857]
[1730134043834,17.02783304,174.94,174.88,11.31163304]
[1730134044540,5.7162,174.94,174.89,11.31163304]
[1730134044740,5.7162,174.94,174.88,11.31163304]
[1730134044741,17.02783304,174.94,174.88,11.31163304]
[1730134045449,5.7162,174.94,174.89,11.31163304]
[1730134045648,17.02783304,174.94,174.88,12.74244563]
[1730134046658,17.02783304,174.94,174.88,1.43081259]
[1730134049753,17.02783304,174.94,174.88,7.14881259]
[1730134050452,17.02783304,174.94,174.88,18.46044563]
[1730134050656,17.02783304,174.94,174.89,1.43081259]
[1730134050961,17.02783304,174.94,174.89,2.86162021]
[1730134051850,5.7162,174.94,174.89,14.17325325]
[1730134052044,5.7162,174.94,174.89,12.74244563]
[1730134052247,17.02783304,174.94,174.9,1.43080749]
[1730134052440,20.0,174.93,174.9,1.43080749]
[1730134052959,5.7159,174.95,174.91,11.31163304]
[1730134053341,5.7159,174.95,174.9,12.74244053]
[1730134053542,5.7159,174.95,174.9,12.74006242]
[1730134054446,5.7159,174.95,174.9,1.43080749]
[1730134054767,5.7159,174.95,174.9,14.17084579]
[1730134054948,5.7159,174.95,174.91,1.43078337]
[1730134055566,5.7159,174.95,174.9,2.86159086]
[1730134055769,17.02515493,174.95,174.9,2.86159086]